Cogmind - Beta 16.1 @@@ ROGUE MODE // 2026.03.26 @ 17:13:12 Player: Windjigo Result: Destroyed by G-50 Soldier with Heavy Laser Performance ------------- Evolutions (5) 2500 Regions Visited (5) 1000 Robots Destroyed (74) 370 Value Destroyed (2429) 2429 Prototype IDs (13) 260 Alien Tech Used (0) 0 Bonus (300) 300 TOTAL SCORE: 6859 Bonus ------- Registered with UFD 300 Cogmind --------- Core Integrity 0/1000 Matter 300/300 Energy 345/345 System Corruption 20% Temperature Cool (42) Movement Core (700) Ox13 Location -5/Factory Parts ------- > --- POWER (2) -------- Micro Fission Core Fusion Reactor > --- PROPULSION (4) --- (None) > --- UTILITY (8) ------ Improved Coolant Injector Medium Storage Unit Improved Signal Interpreter Advanced Salvage Targeting Computer Improved Target Analyzer Improved Target Analyzer Improved Target Analyzer > --- WEAPON (3) ------- KE Penetrator Chainsword Companion Sword > --- INVENTORY (10) --- Fusion Reactor Fusion Reactor Large Storage Unit Weapon Cycler Improved Thermal Shield Faulty Scatter Rocket Array Dirty Datajack (19) Vortex Trap Peak State ------------ > --- POWER ------------ Fusion Reactor Fusion Reactor > --- PROPULSION ------- Medium Treads Armored Medium Treads Carbon-fiber Leg Flexi-carbon Leg > --- UTILITY ---------- Improved Coolant Injector Large Storage Unit Improved Signal Interpreter Advanced Salvage Targeting Computer Improved Target Analyzer Improved Target Analyzer Point Defense System > --- WEAPON ----------- Axe Chainsword Companion Sword > --- INVENTORY -------- Fusion Reactor Fusion Reactor Improved Kinecellerator Weapon Cycler Improved Thermal Shield Improved Arc Projector Gatling Laser Improved Heavy Laser Gauss Rifle Improved Heavy Machine Gun KE Penetrator Scatter Rocket Array Dirty Datajack Improved Remote Datajack Vortex Trap [Rating: 85] Favorites ----------- Power Improved Deuterium Engine Engine Improved Deuterium Engine Power Core Light Nuclear Core Reactor Fusion Reactor Propulsion Light Treads Treads Light Treads Leg Improved Titanium Leg Wheel Armored Huge Wheel Hover Unit Antigrav System Flight Unit Cooled VTOL Module Utility Large Storage Unit Device Improved Coolant Injector Storage Large Storage Unit Processor Improved Target Analyzer Hackware Makeshift Hacking Suite Protection Light Armor Plating Weapon Ripper Energy Gun Gatling Laser Ballistic Gun Flak Gun Launcher Subdweller Shrapnel Launcher Slashing Weapon Ripper Piercing Weapon Spear Special Melee Weapon Dirty Datajack Build | -11 -10 -10 -7 -7 -5 ------- Run | Yrd Mat Sub Rec Scr Fac Slots Evolved 10 | . . . . . 10 Power 1 | . . . . . 1 Propulsion 2 | . . . . . 2 Utility 6 | . . . . . 6 Weapon 1 | . . . . . 1 Parts Attached 104 | 7 11 13 10 7 56 Power 16 | 1 . 2 1 1 11 Engine 8 | 1 . 1 1 1 4 Core 5 | . . 1 . . 4 Reactor 3 | . . . . . 3 Propulsion 36 | 2 2 5 5 3 19 Treads 12 | 2 2 2 4 . 2 Leg 8 | . . . . 3 5 Wheel 5 | . . 3 1 . 1 Hover 5 | . . . . . 5 Flight 6 | . . . . . 6 Utility 25 | 2 3 1 2 . 17 Device 11 | 1 . . . . 10 Storage 5 | 1 2 . 1 . 1 Processor 6 | . . . . . 6 Hackware 1 | . . . 1 . . Protection 2 | . 1 1 . . . Artifact . | . . . . . . Weapon 27 | 2 6 5 2 3 9 Energy Gun 4 | . 1 . . 2 1 Energy Cannon . | . . . . . . Ballistic Gun 12 | 2 5 2 1 . 2 Ballistic Cannon . | . . . . . . Launcher 3 | . . 1 . . 2 Special Weapon . | . . . . . . Impact Weapon . | . . . . . . Slashing Weapon 6 | . . 2 . 1 3 Piercing Weapon 1 | . . . . . 1 Special Melee Weapon 1 | . . . 1 . . Unidentified Prototypes 7 | . 1 . . 1 5 Parts Lost 47 | . . 7 . . 40 Power 10 | . . 2 . . 8 Propulsion 21 | . . 3 . . 18 Utility 11 | . . 2 . . 9 Weapon 5 | . . . . . 5 Highest Loss Streak 11 | . . 4 . . 11 To Critical Strikes 1 | . . 1 . . . Average Backups 12 | 3 11 14 13 12 11 Power . | . . . . . . Propulsion 2 | 1 2 1 2 2 2 Utility 3 | . 1 4 3 4 2 Weapon 4 | 1 5 6 6 3 4 Tool/Special . | . . . . . . Unused Backups 32 | . 3 7 3 10 9 Power 3 | . 1 . . 1 1 Propulsion 4 | . . 2 . 1 1 Utility 13 | . 1 1 2 5 4 Weapon 11 | . 1 4 1 3 2 Tool/Special 1 | . . . . . 1 Average Slot Usage (%) 87 | . 100 97 92 87 71 Engine 9 | . 14 4 14 14 3 Core 1 | . . 8 . . 1 Treads 9 | . 28 20 12 . 1 Leg 4 | . . . . 5 9 Wheel 5 | . . 6 8 11 1 Device 6 | . 9 1 1 . 14 Storage 11 | . 14 14 14 14 4 Processor 3 | . . . . . 11 Hackware 6 | . . . 12 14 1 Protection 2 | . 4 11 . . . Energy Gun 2 | . 3 . . 5 . Ballistic Gun 10 | . 24 17 13 8 . Slashing Weapon 10 | . . 8 14 14 10 Peak Build Rating 85 | 7 12 18 30 33 85 Average Rating 33 | 4 11 15 25 31 61 On Entrance 16 | . 7 12 17 30 32 Avg Prop Armor Cover (%) 10 | . . 8 6 . 11 Naked Turns . | . . . . . . Heaviest Build 64 | 15 34 39 37 38 64 Greatest Support 80 | 40 40 40 42 40 80 Greatest Overweight (x) 8 | 1 . 8 1 1 3 Average Overweight (x) . | . . . . . . Largest Inventory Capacity 15 | 8 15 15 15 15 15 Average Capacity 14 | 7 11 15 14 15 14 Most Carried 15 | 7 15 15 15 15 15 Average Carried 13 | 3 11 14 14 14 12 Final Capacity 15 | 8 15 15 15 15 10 Final Carried 15 | 6 15 11 15 15 8 Class Distribution -------------------- 80% | Mutant 7% | Derelict-Gladiator 6% | Scavenger-Mutant 5% | Derelict-Mutant Dominant Class ---------------- Mutant | -10/Materials Mutant | -10/Subcaves Mutant | -7/Recycling Mutant | -7/Scraptown Mutant | -5/Factory Resources | -11 -10 -10 -7 -7 -5 ----------- Run | Yrd Mat Sub Rec Scr Fac Matter Collected 2523 | 201 548 347 415 105 907 Remotely . | . . . . . . Salvage Created 3255 | 25 604 323 427 . 1876 Parts 172 | 8 34 28 17 . 85 Haulers Intercepted 4 | . 2 . . . 2 Recyclers Shooed 18 | . 5 . 7 . 6 Parts Field Recycled . | . . . . . . Retrieved Matter . | . . . . . . Parts Self-Destructed 13 | . . 13 . . . Prevented . | . . . . . . Parts Restored . | . . . . . . Kills | -11 -10 -10 -7 -7 -5 ------- Run | Yrd Mat Sub Rec Scr Fac Combat Hostiles Destroyed 47 | . 9 10 2 . 26 Melee 24 | . . 1 2 . 21 Guns 18 | . 9 7 . . 2 AOE 5 | . . 2 . . 3 Classes Destroyed 13 | 1 7 2 1 . 2 Worker 7 | . 2 . . . 5 Tunneler 2 | 2 . . . . . Hauler 4 | . 2 . . . 2 Recycler 9 | . 2 . 4 . 3 Operator 2 | . 1 . . . 1 Turret 2 | . . 2 . . . Watcher 1 | . 1 . . . . Swarmer 10 | . 3 . . . 7 Grunt 14 | . 6 . . . 8 Sentry 2 | . . . 2 . . Hunter 3 | . . . . . 3 Programmer 8 | . . . . . 8 Subdweller 10 | . . 10 . . . Best Kill Streak 4 | 2 3 4 2 . 4 Combat Bots Only 4 | . 3 4 1 . 3 Max Kills in Single Turn 2 | 1 1 2 1 . 2 Gunslinging . | . . . . . . Exploded 2 | . . 1 . . 2 Melee 1 | . . 1 1 . 1 Uniques/NPCs Destroyed . | . . . . . . Combat | -11 -10 -10 -7 -7 -5 -------- Run | Yrd Mat Sub Rec Scr Fac Hostile Shots Fired 519 | . 30 64 45 . 380 Missed 146 | . 8 17 13 . 108 Hits 373 | . 22 47 32 . 272 Projectile 373 | . 22 47 32 . 272 AOE 2 | . . . . . 2 Critical Strikes 20 | . . 2 . . 18 Damage Taken 6765 | . 215 1242 238 . 5070 Core 1259 | . 7 203 36 . 1013 Absorbed by Shields 364 | . . . . . 364 Ignored by Resistances 39 | . . . . . 39 Regen/Repaired (Parts) 311 | . . . . . 311 Core Remaining (%) 50 | 100 . . . 1 . Volleys Fired 127 | 2 55 36 12 . 22 Largest 2 | 2 2 2 1 . 1 Hottest 88 | 40 88 46 28 . 65 Shots Fired 187 | 4 93 54 13 . 23 Gun 165 | 4 93 46 13 . 9 Cannon . | . . . . . . Launcher 22 | . . 8 . . 14 Special . | . . . . . . Kinetic 138 | 4 66 54 13 . 1 Thermal 35 | . 27 . . . 8 Explosive 14 | . . . . . 14 Electromagnetic . | . . . . . . Robot Hit Streak 24 | 2 10 24 6 . 3 Robot Miss Streak 7 | . 7 2 3 . 3 Penetration Max . | . . . . . . Secondary Targets 2 | . . 2 . . . Max Gunslinging Chain 1 | . . 1 . . . Shots Hit Robots 271 | 2 70 52 21 . 126 Core Hits 152 | 2 49 24 18 . 59 Critical Kills 1 | . 1 . . . . Critical Parts Destroyed 1 | . 1 . . . . Critical Strikes 14 | . 2 1 2 . 9 Destroy 2 | . 2 . . . . Sever 12 | . . 1 2 . 9 Melee Attacks 178 | . . 17 10 . 151 Impact . | . . . . . . Slashing 173 | . . 17 9 . 147 Piercing 5 | . . . 1 . 4 Sneak Attacks 24 | . . 1 4 . 19 Combat Hostiles . | . . . . . . Follow-up Attacks 21 | . . . . . 21 Damage Inflicted 9929 | 24 959 1760 612 . 6574 Guns 1993 | 24 959 722 186 . 102 Cannons . | . . . . . . Explosions 1797 | . . 699 . . 1098 Melee 6139 | . . 339 426 . 5374 Ramming . | . . . . . . Kinetic 2259 | 24 628 1421 186 . . Thermal 433 | . 331 . . . 102 Explosive 1098 | . . . . . 1098 Electromagnetic . | . . . . . . Impact . | . . . . . . Slashing 5991 | . . 339 422 . 5230 Piercing 148 | . . . 4 . 144 Highest Corruption 20 | . 4 4 4 . 20 Average Corruption 5 | . 4 4 4 . 8 Corruption Purged . | . . . . . . Corruption Blocked . | . . . . . . Effects 115 | . 25 21 24 . 45 Message Errors 29 | . 3 6 8 . 12 Matter Fused 30 | . 6 7 5 . 12 Heat Flow Errors 12 | . 5 2 2 . 3 Energy Discharges 15 | . 4 2 2 . 7 Parts Rejected 1 | . 1 . . . . Parts Fused 3 | . . . 2 . 1 Data Loss (minor) 4 | . . . 2 . 2 Data Loss (major) 10 | . 2 1 2 . 5 Misfires 5 | . 2 1 1 . 1 Alerts 2 | . 1 . . . 1 Misdirections 1 | . . . . . 1 Weapon Failures 3 | . 1 2 . . . Overload Shots . | . . . . . . Overflow Damage 837 | . . 64 56 . 717 Projectiles . | . . . . . . Explosions 51 | . . 25 . . 26 Melee 786 | . . 39 56 . 691 Knockbacks . | . . . . . . Impact . | . . . . . . Kinetic . | . . . . . . Secondary . | . . . . . . Self-Inflicted Damage 157 | . . 104 . . 53 Shots 4 | . . 2 . . 2 Rammed . | . . . . . . Targets Rammed . | . . . . . . Kicked . | . . . . . . Crushed . | . . . . . . Highest Temperature 325 | . 325 189 218 . 191 Average Temperature 108 | . 114 107 104 . 67 Received Heat Transfer 1238 | . 81 195 72 . 890 Effects 2 | . 2 . . . . Interference 2 | . 2 . . . . Siege Activations . | . . . . . . Martial Activations . | . . . . . . Shielding Activations . | . . . . . . Robots Disrupted . | . . . . . . Combat Hostiles . | . . . . . . Robots Corrupted . | . . . . . . Combat Hostiles . | . . . . . . Parts Fried . | . . . . . . Impact Corruptions . | . . . . . . Robots Melted . | . . . . . . Combat Hostiles . | . . . . . . Parts Melted 1 | . . . . . 1 Heat Transferred 563 | . 415 . . . 148 Parts Sabotaged . | . . . . . . Parts Stolen . | . . . . . . Parts Stripped . | . . . . . . Power Chain Reactions . | . . . . . . Alert | -11 -10 -10 -7 -7 -5 ------- Run | Yrd Mat Sub Rec Scr Fac Maximum Alert Level 1 | . . . . . 1 Low Security (%) 85 | 100 100 . 100 . 70 Level 1 14 | . . . . . 29 Level 2 . | . . . . . . Level 3 . | . . . . . . Level 4 . | . . . . . . Level 5 . | . . . . . . High Security . | . . . . . . Max Security . | . . . . . . Peak Influence 310 | 10 65 . 34 . 310 Initial 34 | . . . 34 . . Average 64 | . 17 . 3 . 124 Influence Increases 1720 | 10 309 85 105 . 1211 Destroy 0b10 Robot/C 780 | . 180 40 40 . 520 Destroy 0b10 Robot/NC 125 | 10 40 . 20 . 55 Destroy Leader 150 | . 46 . . . 104 Successful Hack 112 | . 13 . 30 . 69 Disable Machine 135 | . 15 . . . 120 Destroy Structure 118 | . . . . . 118 Lose Combat Pursuer 300 | . 15 45 15 . 225 Influence Decreases 1451 | 10 301 20 178 . 942 Entered New Map 43 | . . 4 39 . . Time Decay 933 | 10 301 16 139 . 467 Lost Part 380 | . . . . . 380 Purge Threat 95 | . . . . . 95 Squads Dispatched 11 | . 2 . . . 9 Investigation 4 | . 1 . . . 3 Extermination 4 | . . . . . 4 Reinforcement 3 | . 1 . . . 2 Assault . | . . . . . . Garrison . | . . . . . . Intercept . | . . . . . . Searches Triggered . | . . . . . . Construction Impeded 1 | . . . . . 1 Haulers Reinforced . | . . . . . . Active Scanning Responses . | . . . . . . Cargo Convoy Interrupts . | . . . . . . Stealth | -11 -10 -10 -7 -7 -5 --------- Run | Yrd Mat Sub Rec Scr Fac Distress Signals . | . . . . . . Communications Jammed . | . . . . . . Distress Signals . | . . . . . . Times Spotted 88 | . 20 13 2 . 53 Peak Tracking Total 6 | . 3 4 1 . 6 Tactical Retreats 14 | . 1 2 1 . 10 Traps | -11 -10 -10 -7 -7 -5 ------- Run | Yrd Mat Sub Rec Scr Fac Traps Triggered 8 | . . 3 . . 5 Indirectly . | . . . . . . Trap Hack Attempts . | . . . . . . Triggered . | . . . . . . Disarmed . | . . . . . . Reprogrammed . | . . . . . . Reused . | . . . . . . Traps Extracted . | . . . . . . Installed . | . . . . . . Triggered . | . . . . . . Most Traps Carried 1 | . . . . 1 1 Machines | -11 -10 -10 -7 -7 -5 ---------- Run | Yrd Mat Sub Rec Scr Fac Machines Disabled 11 | . 1 2 . . 8 Max in Single Turn 2 | . 1 2 . . 1 Machines Repaired . | . . . . . . Machines Dismantled . | . . . . . . Machines Sabotaged . | . . . . . . Overloaded Fab Kills . | . . . . . . Hacking | -11 -10 -10 -7 -7 -5 --------- Run | Yrd Mat Sub Rec Scr Fac Machines Accessed 30 | . 3 . 8 10 9 Terminals 14 | . 3 . 6 . 5 Fabricators . | . . . . . . Repair Stations 1 | . . . . . 1 Recycling Units 4 | . . . 2 . 2 Scanalyzers 1 | . . . . . 1 Garrison Access . | . . . . . . Total Hacks 117 | . 9 . 26 54 28 Successful 82 | . 3 . 11 54 14 Failed 35 | . 6 . 15 . 14 Catastrophic 3 | . . . 1 . 2 Database Lockouts . | . . . . . . Manual 29 | . 7 . 15 2 5 Terminals 44 | . 9 . 20 . 15 Fabricators . | . . . . . . Repair Stations 2 | . . . . . 2 Recycling Units 12 | . . . 6 . 6 Scanalyzers 5 | . . . . . 5 Garrison Access . | . . . . . . Terminal Hacks 64 | . 1 . 4 54 5 Record 48 | . . . . 46 2 Robot Analysis 8 | . . . 2 6 . Open Door 1 | . . . . 1 . Open DSF 1 | . . . . . 1 Unreport Threat 2 | . . . . . 2 Zone Layout 3 | . 1 . 2 . . Proto ID Catalog 1 | . . . . 1 . Fabricator Hacks . | . . . . . . Repair Station Hacks 2 | . . . . . 2 Scan Component 1 | . . . . . 1 Repair 1 | . . . . . 1 Recycling Unit Hacks 4 | . . . 3 . 1 Report Inventory 2 | . . . 2 . . Retrieve Components 2 | . . . 1 . 1 Scanalyzer 5 | . . . . . 5 Insert Component 2 | . . . . . 2 Analyze 2 | . . . . . 2 Retrieve Study 1 | . . . . . 1 Garrison Access Hacks . | . . . . . . Unauthorized Hacks 7 | . 2 . 4 . 1 Terminals 7 | . 2 . 4 . 1 Botnet 7 | . 2 . 4 . 1 Fabricators . | . . . . . . Repair Stations . | . . . . . . Recycling Units . | . . . . . . Scanalyzers . | . . . . . . Garrison Access . | . . . . . . Data Cores Recovered . | . . . . . . Used . | . . . . . . Hacking Detections 20 | . 3 . 8 . 9 Full Trace Events 3 | . 1 . . . 2 Feedback Events . | . . . . . . Feedback Blocked . | . . . . . . Robot Schematics Acquired . | . . . . . . Robots Built . | . . . . . . Authchips . | . . . . . . Time . | . . . . . . Total Robot Build Rating . | . . . . . . Part Schematics Acquired 2 | . . . . . 2 Parts Built . | . . . . . . Authchips . | . . . . . . Time . | . . . . . . Total Part Build Rating . | . . . . . . Part Studies Acquired 1 | . . . . . 1 Parts Repaired 1 | . . . . . 1 Time 8 | . . . . . 8 Parts Recycled . | . . . . . . Recycled Matter . | . . . . . . Retrieved Matter . | . . . . . . Retrieved Components 12 | . . . 2 . 10 Parts Scanalyzed 2 | . . . . . 2 Part Schematics Acquired 2 | . . . . . 2 Parts Damaged . | . . . . . . Bothacking | -11 -10 -10 -7 -7 -5 ------------ Run | Yrd Mat Sub Rec Scr Fac Used RIF Installer . | . . . . . . Robots Hacked . | . . . . . . Non-combat . | . . . . . . Combat . | . . . . . . Robot Hacks Applied . | . . . . . . Relay Couplers Released . | . . . . . . Fabnet Peak Effective % . | . . . . . . Robots Rewired . | . . . . . . Allies Hacked . | . . . . . . Hacks Repelled . | . . . . . . Allies | -11 -10 -10 -7 -7 -5 -------- Run | Yrd Mat Sub Rec Scr Fac Total Allies . | . . . . . . Largest Group . | . . . . . . Highest-Rated Group . | . . . . . . Highest-Rated Ally . | . . . . . . Initial UFD Resources 38 | . . . . . 38 Total Orders 3 | . . . . . 3 EXPLORE 3 | . . . . . 3 Ally Attacks . | . . . . . . Total Damage . | . . . . . . Kills . | . . . . . . Allies Corrupted 2 | . . . . . 2 Allies Melted . | . . . . . . Intel | -11 -10 -10 -7 -7 -5 ------- Run | Yrd Mat Sub Rec Scr Fac Active Infowar (turns) 1625 | 1 743 144 100 . 637 Sensors 637 | . . . . . 637 Seismic 988 | 1 743 144 100 . . Robot Analysis Total 8 | . . . 2 6 . Derelict Logs Recovered 3 | . . 1 . 2 . Drone Launches 3 | . . . . . 3 Drone Recoveries 1 | . . . . . 1 Exploration | -11 -10 -10 -7 -7 -5 ------------- Run | Yrd Mat Sub Rec Scr Fac Turns Passed 7610 | 96 1091 1063 1177 1991 2192 Spaces Moved 4899 | 56 552 581 818 1641 1251 Core 21 | 17 . 4 . . . Treads 1246 | 39 552 332 278 . 45 Legs 835 | . . . . 294 541 Wheels 2503 | . . 245 540 1347 371 Hover 204 | . . . . . 204 Flight 90 | . . . . . 90 Fastest Speed 50 | 50 160 120 115 115 100 Average Speed 131 | 127 160 145 131 118 129 Slowest Speed 450 | 160 160 450 240 200 320 Overloaded Moves . | . . . . . . Propulsion Burnouts . | . . . . . . Robots Hopped . | . . . . . . Potential Cave-ins 3 | . . . . . 3 Cave-ins Triggered . | . . . . . . Exploration Rate (%) 53 | 4 61 34 97 94 29 Regions Visited 5 Branch Regions 3 Pre-discovered Areas 2 | . . 1 . 1 . Known Exits Taken . | . . . . . . Unknown Exits Taken 5 | 1 1 1 1 1 . Scrap Searched 21 | . . 12 . 9 . Spaces Dug . | . . . . . . Terrain Destroyed 188 | . . 88 . . 100 Melee . | . . . . . . Projectile . | . . . . . . AOE 188 | . . 88 . . 100 Terrain Rammed . | . . . . . . Walls Destroyed . | . . . . . . Machines Disabled . | . . . . . . Actions | -11 -10 -10 -7 -7 -5 --------- Run | Yrd Mat Sub Rec Scr Fac Total 5644 | 76 670 716 896 1692 1594 Wait 124 | . 22 38 8 3 53 Move 4894 | 55 551 580 817 1640 1251 Hop . | . . . . . . Pick Up 136 | 12 18 12 21 17 56 Fast Attach 35 | 1 2 3 3 5 21 Attach 56 | 6 2 7 1 2 38 Detach 2 | . . . . . 2 Swap 46 | . 8 11 9 2 16 Drop 73 | . 12 12 15 22 12 Fire 127 | 2 55 36 12 . 22 Melee 150 | . . 17 10 . 123 Ram . | . . . . . . Kick . | . . . . . . Crush . | . . . . . . Escape Stasis . | . . . . . . Rewire 1 | . . . . 1 . Trap . | . . . . . . Miscellaneous . | . . . . . . Route ------- -11/Scrapyard -10/Materials (discovered 4 exits: [*Mat] / [*Min x2] / [*Sub]) -10/Subcaves -7/Recycling (discovered 2 exits: *Fac / *Scr) -7/Scraptown (discovered 2 exits: *Fac x2) -5/Factory (discovered 2 exits: *Fac x2) History --------- Turn | Location | Event 10 | -11/Scrapyard | Discovered new exit (range 16) 97 | -11/Scrapyard | Entered Materials 306 | -10/Materials | Build established: Mutant 370 | -10/Materials | Discovered new exit (range 13) 779 | -10/Materials | Discovered new exit (range 5) 830 | -10/Materials | Discovered new exit (range 16) 1174 | -10/Materials | Discovered new exit (range 6) 1188 | -10/Materials | Entered Subcaves 1821 | -10/Subcaves | Disturbed a concealed Subdweller 1968 | -10/Subcaves | A swath of the cavern ceiling suddenly collapsed 2107 | -10/Subcaves | Core integrity fell below 50% 2134 | -10/Subcaves | Core integrity fell below 20% 2160 | -10/Subcaves | Lost 4 parts (1p2n1u) 2173 | -10/Subcaves | Learned location of Mines (-9) 2234 | -10/Subcaves | Discovered new exit (range 14) 2251 | -10/Subcaves | Entered Recycling 2982 | -7/Recycling | Discovered new exit (range 15) 3401 | -7/Recycling | Scanned before Scraplab entrance 3417 | -7/Recycling | Entered Scraplab 3426 | -7/Recycling | Discovered new exit (range 2) 3428 | -7/Recycling | Entered Scraptown 3428 | -7/Scraptown | System corruption cleaned by C-Scrubber 3519 | -7/Scraptown | Visited Awakened 3533 | -7/Scraptown | Visited Cyclists 3585 | -7/Scraptown | Scanned Subdweller tech in exchange for log data 3588 | -7/Scraptown | Learned 12 Factory zone layouts 3589 | -7/Scraptown | Learned location of Quarantine (-3) 3839 | -7/Scraptown | Visited TADAMA 3860 | -7/Scraptown | Visited Bundlers 3930 | -7/Scraptown | Visited Cave Peace 3974 | -7/Scraptown | Visited Spacefarers 4025 | -7/Scraptown | Visited Shadow of the Wyrm 4059 | -7/Scraptown | Discovered new exit (range 5) 4476 | -7/Scraptown | Visited UFD Registry 4476 | -7/Scraptown | Registered with UFD as "Fiberbrain" 4509 | -7/Scraptown | Entered Cyclist Reading Room 4564 | -7/Scraptown | Visited Analyses Database 4589 | -7/Scraptown | Visited Curators Association 4605 | -7/Scraptown | Visited Science Guys 4775 | -7/Scraptown | Visited Scrapoid Research Area 4804 | -7/Scraptown | Visited Scrap Suit Storage 4845 | -7/Scraptown | Visited Abandonware Association 4857 | -7/Scraptown | Learned abandonware demo "MELTYB.EXE" 4879 | -7/Scraptown | Visited Junk Repository 4924 | -7/Scraptown | Visited Sword Containment 4936 | -7/Scraptown | Found Prototype Slashing Weapon 4937 | -7/Scraptown | Identified Companion Sword 4967 | -7/Scraptown | Visited Chapter 10 4995 | -7/Scraptown | Visited DA-N13 Charitable Foundation 4999 | -7/Scraptown | Found DCF Scrap (31 items) 5297 | -7/Scraptown | Build established: Derelict-Mutant 5414 | -7/Scraptown | Discovered new exit (range 5) 5419 | -7/Scraptown | Entered Factory 5419 | -5/Factory | Evolved 10 slots: Power x1, Propulsion x2, Utility x6, Weapon x1 5420 | -5/Factory | Identified exit to Factory 5724 | -5/Factory | Build established: Derelict-Gladiator 6024 | -5/Factory | Lost 11 parts (2p2n4u3w) 6282 | -5/Factory | Build established: Mutant 6437 | -5/Factory | Core integrity fell below 50% 6467 | -5/Factory | Lost 4 parts (1p2n1u) 6591 | -5/Factory | Lost 6 parts (2p2n1u1w) 6655 | -5/Factory | Discovered exit to Factory (range 10) 6756 | -5/Factory | Repaired Lrg. Storage Unit 6903 | -5/Factory | Found Prototype Launcher 6904 | -5/Factory | Identified Scatter Rocket Array 7297 | -5/Factory | System corruption reached 10% 7331 | -5/Factory | Core integrity fell below 20% 7376 | -5/Factory | Lost 5 parts (2p3n) 7584 | -5/Factory | Lost 4 parts (2n1u1w) 7611 | -5/Factory | Destroyed by G-50 Soldier with Heavy Laser Last Messages --------------- 07587_ R-10 Processor collects Hpw. Tractor Beam. 07588_ Acquired Fusion Reactor. 07590_ R-10 Processor collects Com. Wheel. 07594_ Acquired Imp. Target Analyzer. 07595_ R-10 Processor inserts Imp. Heat Sink into recycling unit. 07597_ Acquired 10 matter. 07598_ R-10 Processor inserts Tesla Rifle into recycling unit. 07601_ R-10 Processor inserts Hpw. Shock Rifle into recycling unit. 07602_ R-10 Processor collects Com. Wheel. 07604_ R-10 Processor inserts Hpw. Shock Rifle into recycling unit. 07606_ Critical hit (Burn: +37). 07606_ Antigrav System destroyed. 07608_ Point Defense System destroyed. 07609_ Antigrav System destroyed. 07609_ Critical hit (Burn: +37). Map ----- +----------------------------------------------------+ | ??????????????????????????????????????????? | | ??????????????????????????????????????????? | | ??????????????????????????????????????????? | | ??????????????????????????????????????????? | | ### ??????????????????????????????????????????? | | ??# # ????????????????????????????????? | | ### # ????????????????????????????????? | | # + """"""????????????????????????????????? | | " + # ????????????????????????????????? | | " # # """"""????????????????????????????????? | | " # # ????????????????????????????????? | | " # # ????????????????????????????????? | | # ####+####????????????????????????????????? | | " # # ??????????????????? ???????????? | | " # # ?????????????????? ???????????? | | " # # ????????????????? ??????????? | | " # # ?????????????? u ??????????? | | # # ?????????????# ???????????? | | " ######## # ????????????# #????????????? | | " #??????# ###+############ #????????????? | | " #??????# #????????????? | | " #??????# gg #????????????# | | #??????# g #????????????+ | | #??????# #??""""??????# | | #??????# #??""""??????# | | ###??????################@##### #? ???????+ | | ########??????# """ #??# # """???????# | | #??????# "Y"!=*""" #??# # "?????????# | | #??????# "*"*% """ #??# + ???????????+ | | #??????#% [R! """ #??# ^ #????????????# | | #??????# *![! R#### ^ #????????????# | | #??????# %""" """ + #????????????? | | #??????# """ """ ######+############???? | | ####+###??????# """ """ # # #???? | | #??????# # """"""" # #???? | | ######## # """"""" # #?### | | "" # # # """"""" # ! ### | | "" # """ # # """"""" # + + | | !! F" # """ ############## # # # | | [" # """ ## # """ # # # " | | % # ## # """ # # # " | | [ # """ ## [ # """ # # # " | | ## # """ ## # ###### ### | | ?# + """ ## # + | | ?# # ## # ########## | | ?# # """ ########+########+######+##?#####??? | | ?####### """ ####### ####### ##### !### !#??? | | ???????# """ + % !* #??? | | ???????#= ###### !* ####+## ### #??? | | ???????# #????# !* ! # #####?## ##??? | +----------------------------------------------------+ Best States ------------- Heat Dissipation 59 Coolant Potential 80 Energy Generation 41 Energy Capacity 490 Matter Stores 300 Matter Capacity 300 Sight Range 16 Robot Scan Range 15 Terrain Scan Density 10 Armor Coverage 150 Resistance: TH 20 Point Defense Rating 80 Melee Speed Boost 20 Evasion (%) 55 Melee Accuracy 8 Target Analysis 9 Recoil Reduction 2 Salvage Targeting 3 Offensive Hacking 11 Item Schematics ----------------- Arm. Huge Wheel | -5/Factory | Scanalyzed Hvy. Rocket Launcher | -5/Factory | Scanalyzed Robot Schematics ------------------ None Fabricated ------------ Nothing Repaired ---------- Lrg. Storage Unit | 11% | -5/Factory Studied --------- Imp. Deuterium Engine | -5/Factory | Hacked Alien Tech Used ----------------- None Achievements -------------- Deductive Reasoning Fancy Inventory Item+ Challenges ------------ None Game ------ Seed DispersalFieldJammer Manual? 0 Play Time 01:11:47 Cumulative 112.0 hours Start 2026.03.26 @ 15:58:02 End 2026.03.26 @ 17:13:12 Sessions 1 Manual Loads 0 Difficulty Rogue Special Mode None Game No. 90 Rogue 90 Adventurer 0 Explorer 0 Win Type - Total 0 Types 0/0/0/0/0/0/0/0/0/0 Lore% 63 Gallery% 48 Achievement% 30 Wizard Run 0 Options --------- Layout 1 ASCII 0 Keyboard 0 Movement Mouse Keybinds 0 Fullscreen 1 Font 24/Smallcaps Map View 50x35 Zoom Use 0% Tactical HUD 1 Map Filters NONE Filters NONE Steam 1 RUN: c8e90807-337e-4d9b-9e85-89be9d410d3b